Workbook

Sheet Tabelle1
A1: Firma
A2: Anrede | B2: =INDEX(Tabelle2!G10:G11,Tabelle2!H10) -> Herr
A3: Name
A4: Email | G4: V. 2023
A5: Tel./Fax:
A6: Strasse
A7: PLZ/Ort
A8: Bauvorhaben
A11: Allgemeine Angaben
A13: Heizwärmebedarf (Gebäude) | E13: kW | F13: =IF(D13<1,"Bitte Wärmebedarf eingeben"," ") -> Bitte Wärmebedarf eingeben
A14: Wärmepumpenleistungszahl | F14: =IF(D14<1,"Bitte Leistungszahl eingeben"," ") -> Bitte Leistungszahl eingeben
G15: Sonderlänge
A16: Typ VTP | D16: =INDEX(Tabelle2!C72:C73,Tabelle2!D72) -> Typ 260 | E16: Länge | F16: =Tabelle2!G70 -> 6 | G16: 10
A17: Anordnung | D17: =INDEX(Tabelle2!A77:A78,Tabelle2!B77) -> Gruppen | E17: =IF(Tabelle2!$P$10=2,"Mittelpunktabstand > 4m"," ") ->  | F17: Wenn abweichende Länge, bitte
F18: Sonderlänge wählen
A19: Einbau im Grundwasser | Y19: Allgemeine Angaben | AG19: Allgemeine Angaben | AO19: Allgemeine Angaben | AW19: Allgemeine Angaben | BE19: Allgemeine Angaben | BM19: Allgemeine Angaben | BU19: Allgemeine Angaben | CC19: Allgemeine Angaben | CK19: Allgemeine Angaben | CS19: Allgemeine Angaben | DA19: Allgemeine Angaben | DI19: Allgemeine Angaben | DQ19: Allgemeine Angaben | DY19: Allgemeine Angaben | EG19: Allgemeine Angaben | EO19: Allgemeine Angaben | EW19: Allgemeine Angaben | FE19: Allgemeine Angaben | FM19: Allgemeine Angaben | FU19: Allgemeine Angaben | GC19: Allgemeine Angaben | GK19: Allgemeine Angaben | GS19: Allgemeine Angaben | HA19: Allgemeine Angaben | HI19: Allgemeine Angaben | HQ19: Allgemeine Angaben | HY19: Allgemeine Angaben | IG19: Allgemeine Angaben | IO19: Allgemeine Angaben
E21: =IF(Tabelle2!B77=1,1," " ) -> 
A22: Einbau im Grundwasser | E22: =IF(Tabelle2!A79=TRUE,"VTP müssen vollständig im Grundwasser stehen"," " ) -> 
A23: Grundwasser Fließgeschwindigkeit | D23: =INDEX(Tabelle2!C77:C78,Tabelle2!D79) -> 1 m/d
D24: Angabe der Grundwasserfließgeschwindigkeit
A25: Klimazone
A27: Klimazone durch "click" in der Karte auswählen
A28: Klimazone | C28: Klimazone laut Karte | E28: Bodenbeschaffenheit
A29: =Tabelle2!E3 -> Rostock-Warnemünde | C29: =Tabelle2!D3 -> 2 | E29: =Tabelle2!I3 -> Sand
C30: (nach DIN 4710: 2003-01)
A32: Berechnung | C32: Die Bemessung erfolgt angelehnt an das BDH Infoblatt Nr.:43
A35: erforderliche Entzugsleistung | D35: =ROUND(Tabelle2!D32,0) -> 0 | E35: W
A36: Wärmeleistung VTP gesamt. | D36: =ROUND(B47*Tabelle2!A115,0) -> 0 | E36: W | F36: pro VTP | G36: =ROUND(Tabelle2!A115,0) -> 275 | H36: W
D37: =IF(Tabelle2!B77=1,Tabelle1!D36/Tabelle1!B47," ") -> 
A40: =IF(Tabelle2!A79=TRUE,"Anordnung der VTP senkrecht zur Grundwasserfließrichtung"," ") ->  | D40: =IF(AND(Tabelle2!B77=1,($D$36/B47)<$D$35),"Die Berechnung erfolgt mit Werten für ein einzel stehendes VTP. Für die angegebene Leistung sind jedoch mehrere VTP erforderlich. Bitte neu berechnen mit Anordnung Gruppe oder beim Einbau einen Mindestabstand zwischen den VTP von 10 m sicherstellen. "," " ) -> 
A43: Ausgabe
N44: =IF(#REF!>Tabelle2!B56,"Entzugsleistung zu groß"," ") -> 
A45: VTP Typ : | B45: =Tabelle2!G78 -> Typ 260 | D45: =IF(F16=0,"Länge gewählt (m) ="," ") ->  | F45: =IF(F16=0,G16," ") ->  | G45: =IF(F16=0,"Sonderlänge"," " ) ->  | I45: =IF(Tabelle1!D45>Tabelle2!B56,1," ") -> 1
D46: =IF(Tabelle2!$P$10=2," Mittelpunktabstand > 4m"," ") -> 
A47: Anzahl VTP: | B47: =ROUNDUP((D35/Tabelle2!A115),0) -> 0 | C47: St
A50: Artikel
B51: =Tabelle2!A130 -> Vertical Thermpipe PE 100 Typ 260 Länge:6 m, Außendurchmesser d:260mm, Medienrohr: d 25x2,3
B52: Art.Nr.: | C52: =IF(Tabelle2!B127<1," ",Tabelle2!B127) -> 400200256 | E52: Nettopreis /St. | F52: =IF(Tabelle2!C127<1," ",Tabelle2!C127) -> 779.65 | G52: €
A55: Prinzipskizze
C57: =Tabelle2!M3 -> 0.1 | E57: =Tabelle2!E56 -> 0.48 | F57: =IF(F45="Entzugsleistung zu groß!!"," ",ROUNDUP(G45/100,0)) -> 
C58: =IF(#REF!=0.1,0,IF(F45="Entzugsleistung zu groß!!"," ",ROUNDUP(G45/100,0))) ->  | E58: =IF(#REF!>0.11," ",ROUNDUP(#REF!/100,0)) ->  | F58: =IF(F43>0,F57,C58) -> 
D62: =IF(Tabelle2!B77=1,"Mindestabstand 10 m","Mindestabstand 4 m") -> Mindestabstand 4 m
C64: =IF(Tabelle2!A79=TRUE,CONCATENATE("Grundwasser Fließgeschwindigkeit ",Tabelle2!D77)," " ) -> 
C73: =CONCATENATE(IF(Tabelle2!G70>0,Tabelle2!G70,Tabelle2!F75)," m") -> 6 m | G73: =C73 -> 6 m
D74: Benötigte VTP (St.) | F74: =B47 -> 0
D76: Anordnung: | E76: =INDEX(Tabelle2!A77:A78,Tabelle2!B77) -> Gruppen
A85: =CONCATENATE("d ",Tabelle2!G79) -> d 260 | F85: =CONCATENATE("d ",Tabelle2!G79) -> d 260
F92: 1
A114: =IF(Tabelle1!$J$45=0,Tabelle1!$D$37/Tabelle1!#REF!," " ) -> 

Sheet Tabelle2 (hidden)
A1: Klimazonen | B1: Auswahl | C1: ! Diese Tabelle wird für Makros vewendet ! | F1: Boden Auswahl für Dropdownfeld | J1: Auswahl Verlegeabstand manuelle Berechnung | N1: In diesen Tabellen werden die Werte durch eine Index Funktion ausgewählt
A2: Auswahltabelle für Dropdownfeld | K2: 6 | N2: Die Index Funktion liegt in den Eigenschaften des Dropdownfeldes.
A3: 1 | B3: Bremerhaven | D3: 2 | E3: =INDEX(B3:B17,D3) -> Rostock-Warnemünde | G3: Sand | H3: 1 | I3: =INDEX(G3:G6,H3) -> Sand | J3: 50 | L3: =IF(K2=6,0,INDEX(J3:J8,K2)) -> 0 | M3: =IF(L3>1,L3/100,0.1) -> 0.1 | N3: Die Klimazone für die Karte wird in dem Makro Elipse 0-15 im Modul 1 ermittelt
A4: 2 | B4: Rostock-Warnemünde | G4: Lehm | J4: 60
A5: 3 | B5: Hamburg-Fuhlsbüttel | G5: Schluff | J5: 70
A6: 4 | B6: Potsdam | G6: Sandiger Ton | J6: 80
A7: 5 | B7: Essen | J7: 100
A8: 6 | B8: Bad Marienberg
A9: 7 | B9: Kassel
A10: 8 | B10: Braunlage | G10: Frau | H10: 2
A11: 9 | B11: Chemnitz | G11: Herr
A12: 10 | B12: Hof
A13: 11 | B13: Fichtelberg
A14: 12 | B14: Mannheim
A15: 13 | B15: Passau
A16: 14 | B16: Stötten
A17: 15 | B17: Garmisch Patenkirchen
A20: Berechnungsbasis
A21: 1 | B21: Heizwärmebedarf
A22: 2 | B22: Wärmepumpenleistungszahl
A23: 3 | B23: Volumenstrom
A24: 4 | B24: Entzugleistung Erdreich
B27: Kälteentzugsleistung '=Heizleistung x (Leistungszahl-1) /Leistungszahl
B28: Kollektorfläche'=Kälteentzugleistung in watt /Entzugleistung in Watt/m²
B29: Rohrlänge='Kollektorfläche in m² /Abstand in m | F29: (max 100m /Kreis)
A30: Berechnung | F30: Wird im VTP Programm nicht benötigt
B31: Kälteentzugsleistung | F31: Kolektorfläche | H31: Rohrlänge | J31: Rohrlänge eff. | K31: Kolektorfläche eff
A32: Tabelle1!D13 | B32: =Tabelle1!D13*1000 -> 0 | D32: =IF(B32=0,0,B32*((B33-1)/B33)) -> 0 | F32: =D32/B56 -> 0 | H32: =F32/E56 -> 0 | J32: =Tabelle1!B47*100 -> 0 | K32: =J32*E56 -> 0
A33: Tabelle1!D14 | B33: =Tabelle1!D14 -> 0
A35: Wertetabellen Bezug B54-B57 / F54-F57
D36: Sand | E36: Lehm | F36: Schluff | G36: Sandiger Ton | L36: Sand | M36: Lehm | N36: Schluff | O36: Sandiger Ton
A37: 1 | B37: Bremerhaven | D37: 184 | E37: 300 | F37: 324 | G37: 350 | I37: 1 | J37: Bremerhaven | L37: 0.34 | M37: 0.51 | N37: 0.54 | O37: 0.51
A38: 2 | B38: Rostock-Warnemünde | D38: 158 | E38: 264 | F38: 288 | G38: 316 | I38: 2 | J38: Rostock-Warnemünde | L38: 0.48 | M38: 0.58 | N38: 0.62 | O38: 0.58
A39: 3 | B39: Hamburg-Fuhlsbüttel | D39: 182 | E39: 300 | F39: 324 | G39: 350 | I39: 3 | J39: Hamburg-Fuhlsbüttel | L39: 0.38 | M39: 0.53 | N39: 0.56 | O39: 0.53
A40: 4 | B40: Potsdamm | D40: 170 | E40: 288 | F40: 314 | G40: 348 | I40: 4 | J40: Potsdamm | L40: 0.44 | M40: 0.56 | N40: 0.59 | O40: 0.57
A41: 5 | B41: Essen | D41: 188 | E41: 306 | F41: 330 | G41: 356 | I41: 5 | J41: Essen | L41: 0.32 | M41: 0.47 | N41: 0.52 | O41: 0.47
A42: 6 | B42: Bad Marienberg | D42: 162 | E42: 272 | F42: 294 | G42: 310 | I42: 6 | J42: Bad Marienberg | L42: 0.76 | M42: 0.7 | N42: 0.7 | O42: 0.68
A43: 7 | B43: Kassel | D43: 174 | E43: 292 | F43: 316 | G43: 344 | I43: 7 | J43: Kassel | L43: 0.4 | M43: 0.54 | N43: 0.57 | O43: 0.54
A44: 8 | B44: Braunlage | D44: 152 | E44: 256 | F44: 276 | G44: 290 | I44: 8 | J44: Braunlage | L44: 1 | M44: 0.88 | N44: 0.77 | O44: 0.84
A45: 9 | B45: Chemnitz | D45: 156 | E45: 266 | F45: 292 | G45: 320 | I45: 9 | J45: Chemnitz | L45: 0.64 | M45: 0.64 | N45: 0.67 | O45: 0.64
A46: 10 | B46: Hof | D46: 152 | E46: 264 | F46: 290 | G46: 314 | I46: 10 | J46: Hof | L46: 1.01 | M46: 0.84 | N46: 0.76 | O46: 0.78
A47: 11 | B47: Fichtelberg | D47: 102 | E47: 166 | F47: 210 | G47: 194 | I47: 11 | J47: Fichtelberg | L47: 1 | M47: 1 | N47: 1 | O47: 1
A48: 12 | B48: Mannheim | D48: 204 | E48: 338 | F48: 366 | G48: 402 | I48: 12 | J48: Mannheim | L48: 0.26 | M48: 0.45 | N48: 0.48 | O48: 0.45
A49: 13 | B49: Passau | D49: 160 | E49: 272 | F49: 298 | G49: 320 | I49: 13 | J49: Passau | L49: 0.76 | M49: 0.7 | N49: 0.71 | O49: 0.7
A50: 14 | B50: Stötten | D50: 166 | E50: 284 | F50: 308 | G50: 328 | I50: 14 | J50: Stötten | L50: 0.82 | M50: 0.7 | N50: 0.71 | O50: 0.69
A51: 15 | B51: Garmisch Patenkirchen | D51: 170 | E51: 292 | F51: 318 | G51: 338 | I51: 15 | J51: Garmisch Patenkirchen | L51: 0.88 | M51: 0.72 | N51: 0.72 | O51: 0.71
E52: 290
A53: Berechnung mit Werten aus Klimatabelle und Verlegeabstand
B54: =MATCH(E3,B3:B17,0) -> 2 | C54: Bezug E3 | E54: =MATCH(E3,B3:B17,0) -> 2 | F54: Bezug E3 | I54: =IF(Tabelle1!F43>0,Tabelle2!I56,Tabelle2!J56) -> 0 | L54: =(180/2)/5 -> 18
B55: =MATCH(I3,G3:G6,0) -> 1 | C55: Bezug I3 | E55: =MATCH(I3,G3:G6,0) -> 1 | F55: Bezug I3 | L55: =18*2.6 -> 46.8
A56: Wärmeleistung | B56: =INDEX(D37:G51,B54,B55) -> 158 | C56: W/m² | D56: Verlegeabstand | E56: =INDEX(L37:O51,E54,E55) -> 0.48 | H56: =IF(K2=6," ",K2) ->  | I56: =Tabelle1!F43 -> 0
A57: abhängig | H57: =IF(K2=6," ",K2) ->  | L57: =2*3.14*(0.5/2) -> 1.57
A58: von Klimazone
A59: und Boden
B63: =Tabelle1!M13/Tabelle2!B56 -> 0
A65: Auswahlfelder
A66: für Dropdownfelder aus Tabelle 1 | E66: auswahl Länge
E67: 6
E68: 9
E69: 12 | G69: Rückmeldung für Sonderlänge anzeigen
E70: 0 | G70: =INDEX(E67:E70,F72) -> 6 | H70: Tabelle 1 G16
A71: Auswahl Anrede | C71: Auswahl Typ
A72: Herr | B72: 1 | C72: Typ 260 | D72: 1 | E72: 6m | F72: 1
A73: Frau | C73: Typ 360 | E73: 9m | G73: =IF(D73<3,1,0) -> 1
E74: 12m
E75: Sonderlänge | F75: =Tabelle1!G16 -> 10
A76: Auswahl Einzel oder Gruppen VTP | C76: Auswahl Grundwasser Geschwindigkeit
A77: Einzel VTP | B77: 2 | C77: 1 m/d | D77: =INDEX(C77:C78,D79) -> 1 m/d | E77: =IF(E80=1,Makro1_start(),0) ->  | G77: Für Textauswahl Bezug zu Zelle A124
A78: Gruppen | C78: 5 m/d | E78: Länge | G78: =INDEX(C72:C73,D72) -> Typ 260
A79: FALSE | D79: 1 | E79: =IF(F72=1,6,IF(F72=2,9,IF(F72=3,12,F75))) -> 6 | G79: =IF(D72=1,260,360) -> 260 | H79: =IF(D72=1,"d 25x2,3","d 32x3,0") -> d 25x2,3
A80: Auswahl Grundwasser JA/NEIN | C80: =IF(A79=TRUE,1,0) -> 0 | D80: =IF(A79=TRUE,0,0) -> 0 | E80: =IF(B77=2,1) -> 1
F81: =IF(AND(A79=TRUE,D79<>1),1,0) -> 0
A82: Berechnung | B82: VTP ohne Grundwasser
A83: Faktoren VTP Typ | E83: Die Gelben Felder sind änderbar
A84: 0.58 | B84: Typ 260 | E84: Je nach dem welcher Faktor für die Berechnung benötigt wird
A85: 0.7 | B85: Typ 360 | E85: Rote Felder sind Berechnungsfelder nicht andern !3
A86: =IF(D72=1,A84,A85) -> 0.58 | B86: Auswahl
A87: Korr,Faktor VTP einzel
A88: 1.6 | B88: Einzel VTP
A89: 1 | B89: Gruppen VTP
A90: =IF(B77=1,A88,A89) -> 1 | B90: Auswahl
A91: Tabellenwert aus B56
A92: Länge VTP
A93: =IF(F72=1,6,IF(F72=2,9,IF(F72=3,12,F75))) -> 6
A94: Korr,Faktor
A95: 1
A96: =(B56/2*A93)*(A86*A90*A95) -> 274.92 | B96: Ergebnis Berechnung ohne Grundwasser | E96: Hier endet die Berechnung für VTP ohne Grundwasser
A97: Berechnung VTP im Grundwasser
A98: Korr,Faktoren für Grundwasser
A100: 1.1 | B100: 1L/D GW1
A101: 1 | B101: 5L/D GW5
A102: =IF(D79=1,A100,A101) -> 1.1 | B102: Auswahl | C102: =IF(F79=1,C99,IF(F79=2,C100,C101)) -> 0
A103: Festwert für VTP 360/6m bei 5 m/D
A104: 2200 | B104: W/VTP
A105: Faktor 2 VTP Typ 360/Typ260
A106: 1
A107: 0.82
A108: =IF(D72=1,A107,A106) -> 0.82
A111: Ergebnis Berechnung Grundwasser
A112: =IF(A102=1.1,(B56/2)*(A93*A86*A95*A102*A90),((A104/6)*(A93*A108*A102))) -> 302.412 | E112: Hier endet die Berechnung für VTP im Grundwasser
A114: Ergebniss Auswahl Kein Grundwasser /Grundwasser
A115: =IF(A79=TRUE,A112,A96) -> 274.92 | B115: Bezug zu Tabelle 1 Zelle D36 und D47 | E115: Hier wird die Auswahl getroffen ob es sich um ein VTP mit oder ohne Grundwasser handelt
E116: auswahlkriterium ist der Wert aus Zelle A77
B118: Art Nr. VTP | C118: Preise
A119: 260 6 | B119: 400200256 | C119: 779.65
A120: 260 9 | B120: 400200259 | C120: 890.70
A121: 260 12 | B121: 400200257 | C121: 967.05
A122: 360 6 | B122: 400280326 | C122: 955.50
A123: 360 9 | B123: 400250329 | C123: 1186.85
A124: 360 12 | B124: 400280327 | C124: 1314.05
A126: =IF(AND(D72=1,F72=1),1,IF(AND(D72=1,F72=2),2,(IF(AND(D72=1,F72=3),3,IF(AND(D72=2,F72=1),4,IF(AND(D72=2,F72=2),5,IF(AND(D72=2,F72=3),6,0))))))) -> 1
A127: Hilfszelle für Auswahl | B127: =IF(A126>0,INDEX(B119:B124,$A$126),"Auf Anfrage") -> 400200256 | C127: =IF(A126>0,INDEX(C119:C124,$A$126),"Auf Anfrage") -> 779.65 | E127: hier findet die Auswahl aus ober stehender Liste statt
E128: Bezug ist Zelle A122
A129: Artikeltext (verkettung) | C129: Bezug zu Tabelle 1 B50
A130: =CONCATENATE("Vertical Thermpipe PE 100 ",G78,IF(F72=4," Sonder-"," " )," Länge:",E79," m, ","Außendurchmesser d:",G79,"mm, "," Medienrohr: ",H79) -> Vertical Thermpipe PE 100 Typ 260 Länge:6 m, Außendurchmesser d:260mm, Medienrohr: d 25x2,3 | H130: hier wird der Text verknüpft aus Werten
H131: aus den Zellen F77,G76, H77,G77,G68
A133: df

Sheet Tabelle3 (hidden)
F5: =IF(Tabelle2!B77=1,1,0) -> 0
B9: =IF(F5=1,Makro1_start(),"nichts") -> nichts
D38: Sand | E38: Lehm | F38: Schluff | G38: Sandiger Ton
A39: 1 | B39: Bremerhaven | D39: 180 | E39: 300 | F39: 320 | G39: 350
A40: 2 | B40: Rostock-Warnemünde | D40: 150 | E40: 260 | F40: 280 | G40: 310
A41: 3 | B41: Hamburg-Fuhlsbüttel | D41: 180 | E41: 300 | F41: 320 | G41: 350
A42: 4 | B42: Potsdamm | D42: 170 | E42: 280 | F42: 310 | G42: 340
A43: 5 | B43: Essen | D43: 180 | E43: 300 | F43: 330 | G43: 350
A44: 6 | B44: Bad Marienberg | D44: 160 | E44: 270 | F44: 290 | G44: 310
A45: 7 | B45: Kassel | D45: 170 | E45: 290 | F45: 310 | G45: 340
A46: 8 | B46: Braunlage | D46: 150 | E46: 250 | F46: 270 | G46: 290
A47: 9 | B47: Chemnitz | D47: 150 | E47: 260 | F47: 290 | G47: 320
A48: 10 | B48: Hof | D48: 150 | E48: 260 | F48: 290 | G48: 310
A49: 11 | B49: Fichtelberg | D49: 100 | E49: 160 | F49: 210 | G49: 190
A50: 12 | B50: Mannheim | D50: 200 | E50: 330 | F50: 360 | G50: 400
A51: 13 | B51: Passau | D51: 160 | E51: 270 | F51: 290 | G51: 320
A52: 14 | B52: Stötten | D52: 160 | E52: 280 | F52: 300 | G52: 320
A53: 15 | B53: Garmisch Patenkirchen | D53: 170 | E53: 290 | F53: 310 | G53: 330

Sheet Tabelle4 (hidden)
